[Event "Wch u20 girls"]
[Site "Kocaeli"]
[Date "2013.09.22"]
[Round "9.17"]
[White "Sviridova, Vlada"]
[Black "Kurbonboeva, Sarvinoz"]
[Result "1/2-1/2"]
[ECO "B70"]
[WhiteElo "2063"]
[BlackElo "2120"]
[PlyCount "97"]
[EventDate "2013.09.??"]
[EventType "swiss"]
[EventRounds "13"]
[EventCountry "TUR"]
[Source "CBase R.Goldau"]
[SourceDate "2000.03.01"]
[TimeControl "40/5400+30:1800+30"]

1. e4 c5 2. Nf3 g6 3. d4 cxd4 4. Nxd4 Nc6 {[%emt 0:03:00]} 5. Be2 {[%emt 0:01:
30]} Bg7 {[%emt 0:00:30]} 6. Nb3 {[%emt 0:00:30]} Nf6 {[%emt 0:00:30]} 7. Nc3 {
[%emt 0:00:00]} d6 {[%emt 0:01:30]} 8. O-O {[%emt 0:00:00]} O-O {[%emt 0:00:30]
} 9. Bg5 {[%emt 0:00:30]} Be6 {[%emt 0:05:30]} 10. Kh1 {[%emt 0:00:30]} Na5 {
[%emt 0:15:30]} 11. f4 {[%emt 0:00:30]} Rc8 {[%emt 0:14:30]} 12. f5 {[%emt 0:
39:30]} Bc4 {[%emt 0:03:30]} 13. Bd3 {[%emt 0:05:30]} a6 {[%emt 0:06:30]} 14.
Qd2 {[%emt 0:00:30]} b5 {[%emt 0:05:30]} 15. Bh6 {[%emt 0:11:30]} Nc6 {[%emt 0:
03:30]} 16. Bxg7 {[%emt 0:02:30]} Kxg7 {[%emt 0:00:00]} 17. Bxc4 {[%emt 0:01:
30]} bxc4 {[%emt 0:00:00]} 18. Nd4 {[%emt 0:00:00]} Qb6 {[%emt 0:06:30]} 19.
Nxc6 {[%emt 0:03:00]} Qxc6 {[%emt 0:02:30]} 20. Nd5 {[%emt 0:01:30]} c3 {[%emt
0:09:30]} 21. bxc3 {[%emt 0:10:30]} Nxd5 {[%emt 0:01:30]} 22. exd5 {[%emt 0:00:
30]} Qxc3 {[%emt 0:00:30]} 23. Qe2 {[%emt 0:04:31]} Qe5 {[%emt 0:02:36]} 24.
Rae1 {[%emt 0:01:24]} Qxe2 {[%emt 0:08:59]} 25. Rxe2 {[%emt 0:00:07]} Rfe8 {
[%emt 0:00:02]} 26. h3 {[%emt 0:03:35]} f6 {[%emt 0:03:21]} 27. fxg6 {[%emt 0:
01:37]} hxg6 {[%emt 0:00:09]} 28. Rf4 {[%emt 0:00:46]} Rc5 {[%emt 0:01:15]} 29.
c4 {[%emt 0:00:33]} Rc7 {[%emt 0:04:02]} 30. g4 {[%emt 0:00:15]} g5 {[%emt 0:
01:12]} 31. Rfe4 {[%emt 0:00:19]} Kf7 {[%emt 0:00:06]} 32. Kg2 {[%emt 0:00:19]}
Rb8 {[%emt 0:00:26]} 33. Rc2 {[%emt 0:02:08]} Rc5 {[%emt 0:00:56]} 34. Kg3 {
[%emt 0:00:23]} Rbc8 {[%emt 0:01:13]} 35. Rd4 {[%emt 0:00:08]} Rh8 {[%emt 0:00:
55]} 36. Rc3 {[%emt 0:01:14]} Rhc8 {[%emt 0:00:45]} 37. Kf3 {[%emt 0:03:42]}
Ra5 {[%emt 0:00:52]} 38. Rd2 {[%emt 0:00:43]} Rac5 {[%emt 0:00:24]} 39. Rdc2 {
[%emt 0:00:17]} e6 {[%emt 0:00:39]} 40. dxe6+ {[%emt 0:00:00]} Kxe6 {[%emt 0:
00:00]} 41. Ke4 {[%emt 0:03:29]} f5+ {[%emt 0:06:38]} 42. gxf5+ {[%emt 0:04:30]
} Rxf5 {[%emt 0:00:30]} 43. Rg3 {[%emt 0:10:30]} Rcc5 {[%emt 0:04:30]} 44. Kd3
{[%emt 0:07:33]} Ra5 {[%emt 0:01:38]} 45. Ke2 {[%emt 0:01:22]} Rf4 {[%emt 0:00:
38]} 46. c5 {[%emt 0:00:45]} Rxc5 {[%emt 0:04:06]} 47. Rxc5 {[%emt 0:00:07]}
dxc5 {[%emt 0:00:03]} 48. Rxg5 {[%emt 0:00:01]} Rh4 {[%emt 0:01:36]} 49. Rxc5 {
[%emt 0:01:23]} 1/2-1/2

[Event "Wch u20 girls"]
[Site "Kocaeli"]
[Date "2013.09.22"]
[Round "9.18"]
[White "Nguyen, Thi Mai Hung"]
[Black "Monnisha, Gk"]
[Result "1-0"]
[ECO "A47"]
[WhiteElo "2225"]
[BlackElo "2094"]
[PlyCount "107"]
[EventDate "2013.09.??"]
[EventType "swiss"]
[EventRounds "13"]
[EventCountry "TUR"]
[Source "CBase R.Goldau"]
[SourceDate "2000.03.01"]
[TimeControl "40/5400+30:1800+30"]

1. d4 Nf6 2. Nf3 e6 3. e3 c5 4. Bd3 b6 5. O-O Bb7 {[%emt 0:01:30]} 6. Nbd2 {
[%emt 0:04:00]} Be7 {[%emt 0:00:30]} 7. b3 {[%emt 0:02:30]} O-O {[%emt 0:00:00]
} 8. Bb2 {[%emt 0:00:00]} Nc6 {[%emt 0:00:00]} 9. a3 {[%emt 0:00:00]} Qc7 {
[%emt 0:04:30]} 10. Qe2 {[%emt 0:05:30]} d5 {[%emt 0:08:30]} 11. Ne5 {[%emt 0:
07:30]} a6 {[%emt 0:09:30]} 12. f4 {[%emt 0:02:30]} b5 {[%emt 0:00:30]} 13.
dxc5 {[%emt 0:03:30]} Nxe5 {[%emt 0:05:30]} 14. fxe5 {[%emt 0:01:30]} Ne4 {
[%emt 0:03:30]} 15. b4 {[%emt 0:00:30]} Bg5 {[%emt 0:06:30]} 16. Rad1 {[%emt 0:
09:30]} Bc6 {[%emt 0:02:30]} 17. Kh1 {[%emt 0:07:30]} Bh6 {[%emt 0:06:30]} 18.
Rf3 {[%emt 0:04:30]} Nxd2 {[%emt 0:02:30]} 19. Qxd2 {[%emt 0:01:30]} d4 {[%emt
0:00:00]} 20. Rh3 {[%emt 0:00:30]} dxe3 {[%emt 0:00:00]} 21. Qe2 {[%emt 0:00:
30]} Rfd8 {[%emt 0:04:30]} 22. Qg4 {[%emt 0:01:30]} Kh8 {[%emt 0:02:30]} 23.
Re1 {[%emt 0:01:30]} a5 {[%emt 0:07:30]} 24. Rexe3 {[%emt 0:10:30]} axb4 {
[%emt 0:04:30]} 25. Reg3 {[%emt 0:13:30]} Rg8 {[%emt 0:00:30]} 26. axb4 {[%emt
0:04:30]} Qa7 {[%emt 0:05:30]} 27. Qf4 {[%emt 0:02:53]} Qe7 {[%emt 0:10:54]}
28. Kg1 {[%emt 0:05:56]} Ra2 {[%emt 0:03:15]} 29. Qd4 {[%emt 0:00:58]} Qd8 {
[%emt 0:02:31]} 30. Kf1 {[%emt 0:04:44]} Qxd4 {[%emt 0:01:47]} 31. Bxd4 {[%emt
0:00:06]} Rd8 {[%emt 0:00:10]} 32. Be3 {[%emt 0:01:09]} Rxd3 {[%emt 0:02:15]}
33. cxd3 {[%emt 0:00:51]} Bxe3 {[%emt 0:00:12]} 34. Rxe3 {[%emt 0:00:12]} Bxg2+
{[%emt 0:00:06]} 35. Ke1 {[%emt 0:01:57]} Bxh3 {[%emt 0:00:24]} 36. Rxh3 {
[%emt 0:00:04]} Rb2 {[%emt 0:02:35]} 37. Rh4 {[%emt 0:00:09]} g5 {[%emt 0:03:
43]} 38. Rg4 {[%emt 0:02:21]} h5 {[%emt 0:02:18]} 39. Rxg5 {[%emt 0:00:14]}
Rxb4 {[%emt 0:00:02]} 40. Rxh5+ {[%emt 0:00:00]} Kg7 {[%emt 0:00:00]} 41. Kd2 {
[%emt 0:02:56]} Rb2+ {[%emt 0:03:18]} 42. Kc3 {[%emt 0:00:30]} Rb1 {[%emt 0:00:
30]} 43. Rg5+ {[%emt 0:04:30]} Kf8 {[%emt 0:00:30]} 44. Rg2 {[%emt 0:00:30]}
b4+ {[%emt 0:01:30]} 45. Kc2 {[%emt 0:02:30]} Ra1 {[%emt 0:00:30]} 46. Kb3 {
[%emt 0:01:30]} Ra3+ {[%emt 0:02:30]} 47. Kc4 {[%emt 0:00:30]} Rc3+ {[%emt 0:
00:30]} 48. Kd4 {[%emt 0:00:30]} Rb3 {[%emt 0:01:30]} 49. h4 {[%emt 0:07:15]}
Rb1 {[%emt 0:00:30]} 50. h5 {[%emt 0:01:48]} Rh1 {[%emt 0:00:30]} 51. c6 {
[%emt 0:01:19]} Ke7 {[%emt 0:01:30]} 52. Rg8 {[%emt 0:00:16]} Rc1 {[%emt 0:00:
30]} 53. h6 {[%emt 0:00:08]} b3 {[%emt 0:01:30]} 54. h7 {[%emt 0:00:28]} 1-0

[Event "Wch u20 girls"]
[Site "Kocaeli"]
[Date "2013.09.22"]
[Round "9.19"]
[White "Vo, Thi Kim Phung"]
[Black "Liu, Hongyan"]
[Result "1-0"]
[ECO "D00"]
[WhiteElo "2219"]
[BlackElo "2065"]
[PlyCount "61"]
[EventDate "2013.09.??"]
[EventType "swiss"]
[EventRounds "13"]
[EventCountry "TUR"]
[Source "CBase R.Goldau"]
[SourceDate "2000.03.01"]
[TimeControl "40/5400+30:1800+30"]

1. d4 d5 2. Bf4 Nf6 3. e3 c5 4. Nc3 {[%emt 0:02:00]} Nc6 {[%emt 0:03:00]} 5.
Nb5 {[%emt 0:00:30]} e5 {[%emt 0:13:30]} 6. dxe5 {[%emt 0:00:30]} Ne4 {[%emt 0:
01:30]} 7. Qxd5 {[%emt 0:15:30]} Qxd5 {[%emt 0:12:30]} 8. Nc7+ {[%emt 0:00:30]}
Kd8 {[%emt 0:00:30]} 9. Nxd5 {[%emt 0:00:00]} g5 {[%emt 0:01:30]} 10. Bg3 {
[%emt 0:02:00]} Nxg3 {[%emt 0:01:30]} 11. hxg3 {[%emt 0:00:00]} Nxe5 {[%emt 0:
00:30]} 12. Rd1 {[%emt 0:01:00]} Bd7 {[%emt 0:00:30]} 13. Nh3 {[%emt 0:13:30]}
Bxh3 {[%emt 0:06:30]} 14. Rxh3 {[%emt 0:01:30]} Kc8 {[%emt 0:03:30]} 15. Rh5 {
[%emt 0:00:30]} h6 {[%emt 0:02:30]} 16. f4 {[%emt 0:00:30]} Ng6 {[%emt 0:01:30]
} 17. Bd3 {[%emt 0:03:30]} Bd6 {[%emt 0:07:30]} 18. Bf5+ {[%emt 0:06:30]} Kb8 {
[%emt 0:02:30]} 19. Kf2 {[%emt 0:00:30]} gxf4 {[%emt 0:02:30]} 20. gxf4 {[%emt
0:00:00]} c4 {[%emt 0:07:30]} 21. g3 {[%emt 0:04:00]} Bc5 {[%emt 0:05:30]} 22.
Nf6 {[%emt 0:00:30]} Be7 {[%emt 0:01:30]} 23. Ng4 {[%emt 0:01:30]} a6 {[%emt 0:
03:30]} 24. Rxh6 {[%emt 0:00:30]} Ka7 {[%emt 0:02:52]} 25. Rd7 {[%emt 0:01:30]}
Rhd8 {[%emt 0:01:35]} 26. Rxd8 {[%emt 0:00:30]} Rxd8 {[%emt 0:00:08]} 27. Rh7 {
[%emt 0:00:30]} Bb4 {[%emt 0:01:40]} 28. Rxf7 {[%emt 0:01:30]} Rd2+ {[%emt 0:
00:16]} 29. Kf3 {[%emt 0:00:00]} Ne7 {[%emt 0:00:15]} 30. Be4 {[%emt 0:00:00]}
Bc5 {[%emt 0:06:47]} 31. Ne5 {[%emt 0:00:30]} 1-0

[Event "Wch u20 girls"]
[Site "Kocaeli"]
[Date "2013.09.22"]
[Round "9.20"]
[White "Petrova, Irina"]
[Black "Iwanow, Anna"]
[Result "1-0"]
[ECO "D98"]
[WhiteElo "2117"]
[BlackElo "2230"]
[PlyCount "109"]
[EventDate "2013.09.??"]
[EventType "swiss"]
[EventRounds "13"]
[EventCountry "TUR"]
[Source "CBase R.Goldau"]
[SourceDate "2000.03.01"]
[TimeControl "40/5400+30:1800+30"]

1. d4 Nf6 2. c4 g6 3. Nc3 d5 4. Nf3 Bg7 5. Qb3 dxc4 6. Qxc4 O-O 7. e4 {[%emt 0:
00:30]} Bg4 {[%emt 0:05:30]} 8. Be3 {[%emt 0:00:30]} Nc6 {[%emt 0:06:30]} 9.
Rd1 {[%emt 0:00:30]} Bxf3 {[%emt 0:06:30]} 10. gxf3 {[%emt 0:00:00]} Nh5 {
[%emt 0:08:30]} 11. Be2 {[%emt 0:09:00]} e5 {[%emt 0:04:30]} 12. d5 {[%emt 0:
15:30]} Nd4 {[%emt 0:02:30]} 13. Nb5 {[%emt 0:14:30]} Nxb5 {[%emt 0:01:30]} 14.
Qxb5 {[%emt 0:00:00]} b6 {[%emt 0:05:30]} 15. Rc1 {[%emt 0:07:00]} Nf4 {[%emt
0:14:30]} 16. Qc6 {[%emt 0:05:30]} Ng2+ {[%emt 0:03:30]} 17. Kd2 {[%emt 0:06:
30]} Nxe3 {[%emt 0:03:30]} 18. fxe3 {[%emt 0:00:30]} Bh6 {[%emt 0:03:30]} 19.
h4 {[%emt 0:05:30]} Qe7 {[%emt 0:12:30]} 20. Qxc7 {[%emt 0:06:30]} Qb4+ {[%emt
0:00:00]} 21. Qc3 {[%emt 0:00:00]} Qd4+ {[%emt 0:01:00]} 22. Qxd4 {[%emt 0:00:
00]} exd4 {[%emt 0:00:00]} 23. f4 {[%emt 0:00:30]} Rfe8 {[%emt 0:02:00]} 24.
Kd3 {[%emt 0:08:30]} dxe3 {[%emt 0:01:34]} 25. Rcf1 {[%emt 0:01:30]} Rad8 {
[%emt 0:02:03]} 26. h5 {[%emt 0:01:55]} Bg7 {[%emt 0:02:02]} 27. hxg6 {[%emt 0:
02:38]} hxg6 {[%emt 0:00:11]} 28. f5 {[%emt 0:01:51]} Bxb2 {[%emt 0:04:23]} 29.
fxg6 {[%emt 0:00:09]} fxg6 {[%emt 0:00:08]} 30. Kxe3 {[%emt 0:00:14]} Kg7 {
[%emt 0:00:42]} 31. Kd3 {[%emt 0:05:28]} Rc8 {[%emt 0:02:49]} 32. Rb1 {[%emt 0:
01:19]} Be5 {[%emt 0:01:35]} 33. Rbc1 {[%emt 0:01:27]} Bd6 {[%emt 0:04:49]} 34.
Bg4 {[%emt 0:02:11]} Rxc1 {[%emt 0:00:53]} 35. Rxc1 {[%emt 0:00:04]} Kf6 {
[%emt 0:01:09]} 36. Be6 {[%emt 0:02:30]} Re7 {[%emt 0:02:46]} 37. Rf1+ {[%emt
0:01:23]} Ke5 {[%emt 0:00:15]} 38. Bf7 {[%emt 0:00:33]} Bc5 {[%emt 0:00:53]}
39. Bxg6 {[%emt 0:00:14]} Kd6 {[%emt 0:00:58]} 40. Bf7 {[%emt 0:00:00]} Kc7 {
[%emt 0:00:00]} 41. Be6 {[%emt 0:04:04]} Rg7 {[%emt 0:07:50]} 42. e5 {[%emt 0:
03:30]} Rg3+ {[%emt 0:03:30]} 43. Kc4 {[%emt 0:00:30]} Rg7 {[%emt 0:00:30]} 44.
d6+ {[%emt 0:04:30]} Bxd6 {[%emt 0:01:30]} 45. Rf7+ {[%emt 0:00:30]} Rxf7 {
[%emt 0:00:00]} 46. exd6+ {[%emt 0:00:00]} Kxd6 {[%emt 0:00:00]} 47. Bxf7 {
[%emt 0:00:00]} a6 {[%emt 0:00:30]} 48. Bd5 {[%emt 0:01:30]} Kc7 {[%emt 0:02:
32]} 49. Be4 {[%emt 0:00:30]} Kb8 {[%emt 0:00:37]} 50. Kd5 {[%emt 0:00:00]} Kc7
{[%emt 0:00:08]} 51. Bd3 {[%emt 0:00:00]} b5 {[%emt 0:00:58]} 52. Kc5 {[%emt 0:
00:30]} Kb7 {[%emt 0:00:05]} 53. a3 {[%emt 0:00:30]} Kc7 {[%emt 0:00:54]} 54.
Be4 {[%emt 0:00:30]} Kd7 {[%emt 0:00:11]} 55. Bb7 {[%emt 0:00:30]} 1-0

[Event "Wch u20 girls"]
[Site "Kocaeli"]
[Date "2013.09.22"]
[Round "9.21"]
[White "Rakhmangulova, Anastasiya"]
[Black "Kuchava, Ana"]
[Result "1-0"]
[ECO "B30"]
[WhiteElo "2194"]
[BlackElo "2092"]
[PlyCount "53"]
[EventDate "2013.09.??"]
[EventType "swiss"]
[EventRounds "13"]
[EventCountry "TUR"]
[Source "CBase R.Goldau"]
[SourceDate "2000.03.01"]
[TimeControl "40/5400+30:1800+30"]

1. e4 c5 2. Nf3 e6 3. d3 Nc6 4. g3 {[%emt 0:00:00]} d6 {[%emt 0:02:00]} 5. Bg2
{[%emt 0:00:30]} Nf6 {[%emt 0:00:30]} 6. O-O {[%emt 0:00:30]} Be7 {[%emt 0:00:
30]} 7. Re1 {[%emt 0:00:30]} O-O {[%emt 0:00:30]} 8. c3 {[%emt 0:00:30]} Bd7 {
[%emt 0:00:30]} 9. d4 {[%emt 0:00:30]} cxd4 {[%emt 0:00:30]} 10. cxd4 {[%emt 0:
00:30]} d5 {[%emt 0:00:30]} 11. e5 {[%emt 0:00:30]} Ne4 {[%emt 0:00:30]} 12.
Nc3 {[%emt 0:01:30]} Nxc3 {[%emt 0:03:30]} 13. bxc3 {[%emt 0:00:00]} b5 {[%emt
0:04:30]} 14. Qd3 {[%emt 0:15:00]} Na5 {[%emt 0:03:30]} 15. h4 {[%emt 0:01:30]}
h6 {[%emt 0:05:30]} 16. Nh2 {[%emt 0:01:30]} Rc8 {[%emt 0:07:30]} 17. Bf4 {
[%emt 0:05:30]} Qc7 {[%emt 0:07:30]} 18. Rac1 {[%emt 0:01:30]} Qc4 {[%emt 0:14:
30]} 19. Qf3 {[%emt 0:02:30]} Ba3 {[%emt 0:20:30]} 20. Ng4 {[%emt 0:03:30]} Qc6
{[%emt 0:08:35]} 21. Nf6+ {[%emt 0:05:30]} gxf6 {[%emt 0:01:04]} 22. Qg4+ {
[%emt 0:05:30]} Kh7 {[%emt 0:03:13]} 23. Qh5 {[%emt 0:00:30]} f5 {[%emt 0:04:
00]} 24. Qxh6+ {[%emt 0:00:30]} Kg8 {[%emt 0:00:01]} 25. Bg5 {[%emt 0:00:30]}
f6 {[%emt 0:03:43]} 26. Qg6+ {[%emt 0:00:00]} Kh8 {[%emt 0:00:05]} 27. exf6 {
[%emt 0:00:00]} 1-0

[Event "Wch u20 girls"]
[Site "Kocaeli"]
[Date "2013.09.22"]
[Round "9.22"]
[White "De Seroux, Camille"]
[Black "Juhasz, Barbara"]
[Result "1-0"]
[ECO "C45"]
[WhiteElo "2108"]
[BlackElo "2131"]
[PlyCount "85"]
[EventDate "2013.09.??"]
[EventType "swiss"]
[EventRounds "13"]
[EventCountry "TUR"]
[Source "CBase R.Goldau"]
[SourceDate "2000.03.01"]
[TimeControl "40/5400+30:1800+30"]

1. e4 e5 2. Nf3 Nc6 3. d4 exd4 4. Nxd4 Bc5 5. Nb3 Bb6 6. Nc3 d6 7. Qe2 {[%emt
0:00:00]} Nge7 {[%emt 0:03:30]} 8. Be3 {[%emt 0:00:00]} O-O {[%emt 0:00:30]} 9.
O-O-O {[%emt 0:00:30]} f5 {[%emt 0:00:30]} 10. exf5 {[%emt 0:00:30]} Nxf5 {
[%emt 0:05:30]} 11. Bxb6 {[%emt 0:01:30]} axb6 {[%emt 0:00:30]} 12. Re1 {[%emt
0:00:30]} Kh8 {[%emt 0:03:30]} 13. Qd2 {[%emt 0:06:30]} Na5 {[%emt 0:13:30]}
14. Nxa5 {[%emt 0:05:30]} bxa5 {[%emt 0:08:30]} 15. f4 {[%emt 0:06:30]} c6 {
[%emt 0:01:30]} 16. g4 {[%emt 0:12:30]} Nh6 {[%emt 0:03:30]} 17. h3 {[%emt 0:
01:30]} d5 {[%emt 0:05:30]} 18. f5 {[%emt 0:05:30]} Nf7 {[%emt 0:01:30]} 19.
Bd3 {[%emt 0:04:30]} Nd6 {[%emt 0:10:30]} 20. Rhf1 {[%emt 0:04:30]} Qh4 {[%emt
0:12:30]} 21. Qf4 {[%emt 0:06:30]} Nf7 {[%emt 0:01:30]} 22. Qc7 {[%emt 0:03:30]
} Qd8 {[%emt 0:00:30]} 23. Re7 {[%emt 0:10:30]} Qxc7 {[%emt 0:00:30]} 24. Rxc7
{[%emt 0:00:00]} Nd6 {[%emt 0:02:30]} 25. Re1 {[%emt 0:05:00]} Ne8 {[%emt 0:04:
30]} 26. Rce7 {[%emt 0:03:30]} Nf6 {[%emt 0:00:00]} 27. Na4 {[%emt 0:01:30]} h6
{[%emt 0:11:03]} 28. Nb6 {[%emt 0:02:30]} Rb8 {[%emt 0:00:05]} 29. Rc7 {[%emt
0:05:05]} Ng8 {[%emt 0:02:56]} 30. Kd2 {[%emt 0:03:54]} h5 {[%emt 0:00:14]} 31.
Re5 {[%emt 0:03:16]} hxg4 {[%emt 0:01:57]} 32. hxg4 {[%emt 0:00:06]} Nf6 {
[%emt 0:00:07]} 33. Ree7 {[%emt 0:04:55]} Rd8 {[%emt 0:02:18]} 34. Rxg7 {[%emt
0:03:52]} Ne8 {[%emt 0:00:07]} 35. Rh7+ {[%emt 0:00:16]} Kg8 {[%emt 0:00:09]}
36. Rce7 {[%emt 0:00:26]} c5 {[%emt 0:00:33]} 37. b3 {[%emt 0:01:41]} Nf6 {
[%emt 0:03:23]} 38. Rhg7+ {[%emt 0:00:28]} Kh8 {[%emt 0:00:08]} 39. Ke3 {[%emt
0:01:03]} Rd6 {[%emt 0:01:00]} 40. Nxc8 {[%emt 0:00:00]} Rxc8 {[%emt 0:00:00]}
41. g5 {[%emt 0:03:28]} c4 {[%emt 0:02:00]} 42. gxf6 {[%emt 0:02:30]} cxd3 {
[%emt 0:00:30]} 43. Rh7+ {[%emt 0:00:00]} 1-0

[Event "Wch u20 girls"]
[Site "Kocaeli"]
[Date "2013.09.22"]
[Round "9.23"]
[White "Ivana Maria, Furtado"]
[Black "Savant, Riya"]
[Result "1-0"]
[ECO "E08"]
[WhiteElo "2116"]
[BlackElo "1960"]
[PlyCount "67"]
[EventDate "2013.09.??"]
[EventType "swiss"]
[EventRounds "13"]
[EventCountry "TUR"]
[Source "CBase R.Goldau"]
[SourceDate "2000.03.01"]
[TimeControl "40/5400+30:1800+30"]

1. d4 Nf6 2. c4 e6 {[%emt 0:02:00]} 3. Nf3 {[%emt 0:02:30]} d5 {[%emt 0:00:30]}
4. g3 {[%emt 0:00:30]} Be7 {[%emt 0:06:30]} 5. Bg2 {[%emt 0:00:30]} O-O {[%emt
0:00:30]} 6. O-O {[%emt 0:00:30]} c6 {[%emt 0:02:30]} 7. Qc2 {[%emt 0:00:00]}
b6 {[%emt 0:02:30]} 8. b3 {[%emt 0:03:00]} Bb7 {[%emt 0:02:30]} 9. Nc3 {[%emt
0:01:30]} Nbd7 {[%emt 0:03:30]} 10. Bb2 {[%emt 0:00:30]} Rc8 {[%emt 0:03:30]}
11. Rfd1 {[%emt 0:01:30]} Qc7 {[%emt 0:04:30]} 12. Rac1 {[%emt 0:05:30]} Qb8 {
[%emt 0:03:30]} 13. Qb1 {[%emt 0:02:30]} Rfd8 {[%emt 0:03:30]} 14. e4 {[%emt 0:
06:30]} dxe4 {[%emt 0:07:30]} 15. Nxe4 {[%emt 0:00:30]} c5 {[%emt 0:04:30]} 16.
Ne5 {[%emt 0:10:30]} cxd4 {[%emt 0:15:30]} 17. Nxd7 {[%emt 0:07:30]} Rxd7 {
[%emt 0:02:30]} 18. Rxd4 {[%emt 0:05:30]} Rxd4 {[%emt 0:11:30]} 19. Bxd4 {
[%emt 0:00:30]} Nxe4 {[%emt 0:01:30]} 20. Bxe4 {[%emt 0:00:00]} Bxe4 {[%emt 0:
01:30]} 21. Qxe4 {[%emt 0:00:00]} Qd6 {[%emt 0:02:58]} 22. Qg4 {[%emt 0:12:30]}
Bf8 {[%emt 0:02:03]} 23. Rd1 {[%emt 0:05:30]} Qa3 {[%emt 0:04:45]} 24. Be5 {
[%emt 0:04:30]} Qxa2 {[%emt 0:07:17]} 25. Qf3 {[%emt 0:00:30]} Qa5 {[%emt 0:02:
31]} 26. Qb7 {[%emt 0:08:30]} Qc5 {[%emt 0:01:36]} 27. Bf4 {[%emt 0:00:30]} e5
{[%emt 0:01:42]} 28. Bxe5 {[%emt 0:02:30]} Re8 {[%emt 0:00:15]} 29. Bc3 {[%emt
0:03:54]} Re2 {[%emt 0:00:43]} 30. Qf3 {[%emt 0:00:48]} Re8 {[%emt 0:00:38]}
31. Rd7 {[%emt 0:01:23]} Re7 {[%emt 0:00:16]} 32. Rd8 {[%emt 0:00:59]} f6 {
[%emt 0:00:38]} 33. Qd5+ {[%emt 0:06:22]} Qxd5 {[%emt 0:00:17]} 34. cxd5 {
[%emt 0:00:21]} 1-0

[Event "Wch u20 girls"]
[Site "Kocaeli"]
[Date "2013.09.22"]
[Round "9.25"]
[White "Guney, Gamze Nur"]
[Black "Anu, Bayar"]
[Result "0-1"]
[ECO "E73"]
[WhiteElo "1731"]
[BlackElo "2012"]
[PlyCount "40"]
[EventDate "2013.09.??"]
[EventType "swiss"]
[EventRounds "13"]
[EventCountry "TUR"]
[Source "CBase R.Goldau"]
[SourceDate "2000.03.01"]
[TimeControl "40/5400+30:1800+30"]

1. d4 Nf6 2. c4 g6 3. Nc3 Bg7 {[%emt 0:00:00]} 4. e4 {[%emt 0:05:00]} d6 {
[%emt 0:00:00]} 5. Be2 {[%emt 0:00:30]} O-O {[%emt 0:00:30]} 6. Be3 {[%emt 0:
00:00]} Nbd7 {[%emt 0:14:30]} 7. h3 {[%emt 0:07:00]} e5 {[%emt 0:02:30]} 8. d5
{[%emt 0:05:30]} Nc5 {[%emt 0:00:30]} 9. Qc2 {[%emt 0:00:30]} Bd7 {[%emt 0:03:
30]} 10. b4 {[%emt 0:04:30]} Ncxe4 {[%emt 0:01:30]} 11. Nxe4 {[%emt 0:13:30]}
Nxe4 {[%emt 0:00:00]} 12. c5 {[%emt 0:05:30]} f5 {[%emt 0:07:00]} 13. Rd1 {
[%emt 0:02:30]} a5 {[%emt 0:03:30]} 14. c6 {[%emt 0:04:30]} bxc6 {[%emt 0:08:
30]} 15. dxc6 {[%emt 0:00:00]} Be6 {[%emt 0:00:30]} 16. b5 {[%emt 0:00:00]} d5
{[%emt 0:00:30]} 17. Nf3 {[%emt 0:04:30]} d4 {[%emt 0:03:30]} 18. Bc4 {[%emt 0:
05:30]} Qe7 {[%emt 0:02:30]} 19. Bg5 {[%emt 0:04:30]} Nxg5 {[%emt 0:03:30]} 20.
Nxg5 {[%emt 0:00:00]} Qb4+ {[%emt 0:00:00]} 0-1

[Event "Wch u20 girls"]
[Site "Kocaeli"]
[Date "2013.09.22"]
[Round "9.26"]
[White "Krumova, Ani"]
[Black "Ichimura G Barbosa, Larissa Y"]
[Result "1/2-1/2"]
[ECO "B08"]
[WhiteElo "1993"]
[BlackElo "1868"]
[PlyCount "107"]
[EventDate "2013.09.??"]
[EventType "swiss"]
[EventRounds "13"]
[EventCountry "TUR"]
[Source "CBase R.Goldau"]
[SourceDate "2000.03.01"]
[TimeControl "40/5400+30:1800+30"]

1. d4 Nf6 2. Nf3 g6 3. Nc3 {[%emt 0:00:30]} Bg7 {[%emt 0:05:30]} 4. e4 {[%emt
0:00:30]} d6 {[%emt 0:00:30]} 5. h3 {[%emt 0:00:30]} O-O {[%emt 0:00:30]} 6.
Be3 {[%emt 0:00:30]} e5 {[%emt 0:07:30]} 7. Bc4 {[%emt 0:05:30]} Nc6 {[%emt 0:
03:30]} 8. O-O {[%emt 0:01:30]} Na5 {[%emt 0:11:30]} 9. Be2 {[%emt 0:02:30]}
Qe7 {[%emt 0:02:30]} 10. d5 {[%emt 0:01:30]} b6 {[%emt 0:00:30]} 11. Qd2 {
[%emt 0:04:30]} Ne8 {[%emt 0:04:30]} 12. Nh2 {[%emt 0:03:30]} f5 {[%emt 0:00:
30]} 13. f3 {[%emt 0:00:30]} f4 {[%emt 0:02:30]} 14. Bf2 {[%emt 0:00:30]} g5 {
[%emt 0:00:30]} 15. Rac1 {[%emt 0:07:30]} h5 {[%emt 0:02:30]} 16. Nb1 {[%emt 0:
00:30]} Nf6 {[%emt 0:05:30]} 17. Qd3 {[%emt 0:02:30]} Nb7 {[%emt 0:01:30]} 18.
b4 {[%emt 0:05:30]} Bh6 {[%emt 0:02:30]} 19. Nd2 {[%emt 0:11:30]} Kh7 {[%emt 0:
07:30]} 20. c4 {[%emt 0:02:30]} Rg8 {[%emt 0:00:30]} 21. c5 {[%emt 0:05:30]} g4
{[%emt 0:06:30]} 22. fxg4 {[%emt 0:02:30]} hxg4 {[%emt 0:00:00]} 23. hxg4 {
[%emt 0:03:30]} Nxg4 {[%emt 0:00:00]} 24. cxb6 {[%emt 0:02:30]} cxb6 {[%emt 0:
07:30]} 25. Qc3 {[%emt 0:04:30]} Nxh2 {[%emt 0:04:30]} 26. Kxh2 {[%emt 0:00:30]
} f3 {[%emt 0:04:49]} 27. Bxf3 {[%emt 0:01:30]} Bf4+ {[%emt 0:00:11]} 28. Kg1 {
[%emt 0:02:30]} Qg5 {[%emt 0:00:30]} 29. Rfd1 {[%emt 0:00:30]} Bh3 {[%emt 0:00:
55]} 30. Kf1 {[%emt 0:00:30]} Bxg2+ {[%emt 0:00:25]} 31. Bxg2 {[%emt 0:03:30]}
Qxg2+ {[%emt 0:00:11]} 32. Ke2 {[%emt 0:00:30]} Bxd2 {[%emt 0:08:18]} 33. Qxd2
{[%emt 0:04:30]} Qxe4+ {[%emt 0:00:28]} 34. Qe3 {[%emt 0:01:30]} Qxe3+ {[%emt
0:02:06]} 35. Bxe3 {[%emt 0:00:30]} Rg7 {[%emt 0:03:52]} 36. Rh1+ {[%emt 0:01:
30]} Kg8 {[%emt 0:00:07]} 37. Bh6 {[%emt 0:00:30]} Rg6 {[%emt 0:02:59]} 38.
Rhg1 {[%emt 0:04:44]} Kh7 {[%emt 0:02:14]} 39. Rc7+ {[%emt 0:00:32]} Kxh6 {
[%emt 0:00:17]} 40. Rxg6+ {[%emt 0:00:00]} Kxg6 {[%emt 0:00:00]} 41. Rxb7 {
[%emt 0:00:44]} Kf5 {[%emt 0:04:38]} 42. Ke3 {[%emt 0:03:30]} e4 {[%emt 0:04:
30]} 43. Re7 {[%emt 0:00:30]} Rc8 {[%emt 0:01:30]} 44. Kd4 {[%emt 0:00:30]} b5
{[%emt 0:00:30]} 45. Rf7+ {[%emt 0:01:30]} Kg4 {[%emt 0:02:30]} 46. Kxe4 {
[%emt 0:01:30]} Rc4+ {[%emt 0:00:00]} 47. Kd3 {[%emt 0:00:00]} Rxb4 {[%emt 0:
00:00]} 48. Rxa7 {[%emt 0:00:00]} Kf5 {[%emt 0:04:47]} 49. Re7 {[%emt 0:02:30]}
Ra4 {[%emt 0:00:53]} 50. Re2 {[%emt 0:00:30]} Kf4 {[%emt 0:01:56]} 51. Kc3 {
[%emt 0:00:30]} Rc4+ {[%emt 0:00:52]} 52. Kd3 {[%emt 0:00:30]} Ra4 {[%emt 0:00:
14]} 53. Kc3 {[%emt 0:02:30]} Rc4+ {[%emt 0:00:08]} 54. Kd3 {[%emt 0:00:30]}
1/2-1/2